[Event "Titled Tuesday Blitz August 02 Late 2022"]
[White "Shapiro, David"]
[Black "Olenik Campa, Rudi"]
[WhiteFideId "24133523"]
[BlackFideId "14633264"]
[WhiteElo "2300"]
[BlackElo "2066"]
[Result "1-0"]
[Round "10"]
[TimeControl "180+1"]
[Date "2022.08.02"]
[WhiteClock "0:00:51"]
[BlackClock "0:00:08"]

1. e4 {[%clk 0:02:55]}  c5 {[%clk 0:02:59]} 2. Nf3 {[%clk 0:02:54]}  Nc6 {[%clk 0:02:59]} 3. d4 {[%clk 0:02:54]}  cxd4 {[%clk 0:03:00]} 4. Nxd4 {[%clk 0:02:55]}  Nf6 {[%clk 0:03:00]} 5. Nc3 {[%clk 0:02:55]}  e5 {[%clk 0:03:00]} 6. Ndb5 {[%clk 0:02:54]}  d6 {[%clk 0:03:01]} 7. Nd5 {[%clk 0:02:52]}  Nxd5 {[%clk 0:03:01]} 8. exd5 {[%clk 0:02:53]}  Nb8 {[%clk 0:03:01]} 9. c4 {[%clk 0:02:52]}  a6 {[%clk 0:03:01]} 10. Nc3 {[%clk 0:02:52]}  Be7 {[%clk 0:03:00]} 11. Bd3 {[%clk 0:02:52]}  O-O {[%clk 0:03:00]} 12. O-O {[%clk 0:02:53]}  f5 {[%clk 0:03:00]} 13. f3 {[%clk 0:02:49]}  Nd7 {[%clk 0:02:58]} 14. Be3 {[%clk 0:02:49]}  Bg5 {[%clk 0:02:47]} 15. Bf2 {[%clk 0:02:48]}  b6 {[%clk 0:02:44]} 16. b4 {[%clk 0:02:43]}  a5 {[%clk 0:02:44]} 17. a3 {[%clk 0:02:43]}  Ba6 {[%clk 0:02:40]} 18. Nb5 {[%clk 0:02:40]}  Bxb5 {[%clk 0:02:40]} 19. cxb5 {[%clk 0:02:41]}  Bf6 {[%clk 0:02:35]} 20. Bxf5 {[%clk 0:02:39]}  g6 {[%clk 0:02:29]} 21. Bxd7 {[%clk 0:02:35]}  Qxd7 {[%clk 0:02:28]} 22. Qe2 {[%clk 0:02:23]}  Qb7 {[%clk 0:02:27]} 23. Rac1 {[%clk 0:02:16]}  axb4 {[%clk 0:02:16]} 24. axb4 {[%clk 0:02:17]}  Qxd5 {[%clk 0:02:11]} 25. Rfd1 {[%clk 0:02:17]}  Qb3 {[%clk 0:02:06]} 26. Rxd6 {[%clk 0:02:14]}  Ra2 {[%clk 0:02:04]} 27. Rd2 {[%clk 0:02:07]}  Rxd2 {[%clk 0:01:39]} 28. Qxd2 {[%clk 0:02:08]}  Rd8 {[%clk 0:01:39]} 29. Qe1 {[%clk 0:02:02]}  Bg5 {[%clk 0:01:32]} 30. Rb1 {[%clk 0:01:57]}  Qd5 {[%clk 0:01:23]} 31. Bxb6 {[%clk 0:01:55]}  Rb8 {[%clk 0:01:23]} 32. Bc5 {[%clk 0:01:48]}  Rxb5 {[%clk 0:01:22]} 33. Rd1 {[%clk 0:01:49]}  Qe6 {[%clk 0:01:16]} 34. Rd6 {[%clk 0:01:45]}  Qf5 {[%clk 0:01:15]} 35. Qe2 {[%clk 0:01:33]}  Rb8 {[%clk 0:01:10]} 36. Qc4+ {[%clk 0:01:32]}  Kh8 {[%clk 0:01:06]} 37. Rd1 {[%clk 0:01:32]}  Rc8 {[%clk 0:01:03]} 38. Qe4 {[%clk 0:01:25]}  Qxe4 {[%clk 0:00:42]} 39. fxe4 {[%clk 0:01:26]}  Bh6 {[%clk 0:00:42]} 40. Bd6 {[%clk 0:01:23]}  Kg8 {[%clk 0:00:39]} 41. b5 {[%clk 0:01:19]}  Bf8 {[%clk 0:00:35]} 42. b6 {[%clk 0:01:07]}  Bxd6 {[%clk 0:00:33]} 43. Rxd6 {[%clk 0:01:08]}  Kf7 {[%clk 0:00:29]} 44. b7 {[%clk 0:01:06]}  Rb8 {[%clk 0:00:28]} 45. Rd7+ {[%clk 0:01:06]}  Kf6 {[%clk 0:00:18]} 46. Rxh7 {[%clk 0:01:06]}  Kg5 {[%clk 0:00:19]} 47. g3 {[%clk 0:01:05]}  Rd8 {[%clk 0:00:15]} 48. Kf2 {[%clk 0:01:04]}  Rf8+ {[%clk 0:00:14]} 49. Ke3 {[%clk 0:01:04]}  Kg4 {[%clk 0:00:14]} 50. Kd3 {[%clk 0:00:56]}  Rd8+ {[%clk 0:00:13]} 51. Kc4 {[%clk 0:00:57]}  Kf3 {[%clk 0:00:13]} 52. Rc7 {[%clk 0:00:51]}  Rb8 {[%clk 0:00:11]} 53. Kd5 {[%clk 0:00:51]}  Re8 {[%clk 0:00:08]} 54. Rc8 {[%clk 0:00:51]} 1-0


[Site "https://www.chess.com"]

[Event "Titled Tuesday Blitz August 02 Late 2022"]
[White "Wagner, Dennis"]
[Black "Steinberg, Nitzan"]
[WhiteFideId "24650684"]
[BlackFideId "2801795"]
[WhiteElo "2355"]
[BlackElo "2471"]
[Result "0-1"]
[Round "10"]
[TimeControl "180+1"]
[Date "2022.08.02"]
[WhiteClock "0:00:02"]
[BlackClock "0:00:19"]

1. e4 {[%clk 0:03:00]}  c5 {[%clk 0:03:00]} 2. Nf3 {[%clk 0:03:01]}  e6 {[%clk 0:03:00]} 3. d4 {[%clk 0:03:01]}  cxd4 {[%clk 0:03:01]} 4. Nxd4 {[%clk 0:03:02]}  Nc6 {[%clk 0:03:02]} 5. Nc3 {[%clk 0:03:02]}  Qc7 {[%clk 0:03:03]} 6. Be3 {[%clk 0:02:59]}  a6 {[%clk 0:03:03]} 7. Be2 {[%clk 0:02:45]}  Nf6 {[%clk 0:03:03]} 8. O-O {[%clk 0:02:45]}  Be7 {[%clk 0:03:04]} 9. f4 {[%clk 0:02:45]}  d6 {[%clk 0:03:04]} 10. Qe1 {[%clk 0:02:45]}  O-O {[%clk 0:03:05]} 11. Qg3 {[%clk 0:02:45]}  Bd7 {[%clk 0:03:04]} 12. Kh1 {[%clk 0:02:43]}  b5 {[%clk 0:03:05]} 13. a3 {[%clk 0:02:36]}  Nxd4 {[%clk 0:03:05]} 14. Bxd4 {[%clk 0:02:37]}  Bc6 {[%clk 0:03:06]} 15. Bd3 {[%clk 0:02:36]}  Qb7 {[%clk 0:03:06]} 16. Rae1 {[%clk 0:02:32]}  b4 {[%clk 0:03:06]} 17. axb4 {[%clk 0:02:12]}  Qxb4 {[%clk 0:03:07]} 18. Ne2 {[%clk 0:02:11]}  Qb7 {[%clk 0:03:08]} 19. Ng1 {[%clk 0:01:57]}  Rac8 {[%clk 0:03:07]} 20. b3 {[%clk 0:01:39]}  a5 {[%clk 0:03:07]} 21. Nf3 {[%clk 0:01:19]}  a4 {[%clk 0:03:07]} 22. bxa4 {[%clk 0:01:18]}  Bxa4 {[%clk 0:03:07]} 23. Rb1 {[%clk 0:01:06]}  Qd7 {[%clk 0:02:42]} 24. c3 {[%clk 0:00:24]}  Rb8 {[%clk 0:02:01]} 25. Rxb8 {[%clk 0:00:23]}  Rxb8 {[%clk 0:02:01]} 26. e5 {[%clk 0:00:24]}  dxe5 {[%clk 0:02:01]} 27. fxe5 {[%clk 0:00:19]}  Nd5 {[%clk 0:01:54]} 28. Ng5 {[%clk 0:00:10]}  Bxg5 {[%clk 0:01:53]} 29. Qxg5 {[%clk 0:00:11]}  Bb5 {[%clk 0:01:47]} 30. Bxb5 {[%clk 0:00:08]}  Qxb5 {[%clk 0:01:41]} 31. Qc1 {[%clk 0:00:08]}  Qd3 {[%clk 0:01:33]} 32. h3 {[%clk 0:00:07]}  h6 {[%clk 0:01:33]} 33. Rf3 {[%clk 0:00:05]}  Qe4 {[%clk 0:01:30]} 34. Kh2 {[%clk 0:00:04]}  Ra8 {[%clk 0:01:24]} 35. Qf1 {[%clk 0:00:02]}  Rf8 {[%clk 0:01:13]} 36. Rg3 {[%clk 0:00:03]}  Kh7 {[%clk 0:01:08]} 37. Rg4 {[%clk 0:00:03]}  Qc2 {[%clk 0:01:05]} 38. Qf3 {[%clk 0:00:03]}  Ne7 {[%clk 0:01:04]} 39. Qe4+ {[%clk 0:00:02]}  Qxe4 {[%clk 0:01:04]} 40. Rxe4 {[%clk 0:00:03]}  Rc8 {[%clk 0:01:04]} 41. Re2 {[%clk 0:00:03]}  Nd5 {[%clk 0:01:03]} 42. Rf2 {[%clk 0:00:02]}  Kg6 {[%clk 0:01:02]} 43. Rf3 {[%clk 0:00:02]}  f5 {[%clk 0:01:00]} 44. exf6 {[%clk 0:00:02]}  gxf6 {[%clk 0:01:00]} 45. Rg3+ {[%clk 0:00:02]}  Kf7 {[%clk 0:01:01]} 46. Rf3 {[%clk 0:00:02]}  Ke7 {[%clk 0:01:00]} 47. g4 {[%clk 0:00:01]}  e5 {[%clk 0:01:01]} 48. Bf2 {[%clk 0:00:02]}  Nxc3 {[%clk 0:00:59]} 49. Bh4 {[%clk 0:00:02]}  Nd5 {[%clk 0:00:59]} 50. Rf2 {[%clk 0:00:02]}  Ke6 {[%clk 0:00:59]} 51. Kg2 {[%clk 0:00:02]}  Rc3 {[%clk 0:00:58]} 52. Bg3 {[%clk 0:00:03]}  e4 {[%clk 0:00:56]} 53. Ra2 {[%clk 0:00:03]}  Rc6 {[%clk 0:00:46]} 54. Re2 {[%clk 0:00:03]}  f5 {[%clk 0:00:43]} 55. gxf5+ {[%clk 0:00:03]}  Kxf5 {[%clk 0:00:44]} 56. Rf2+ {[%clk 0:00:04]}  Ke6 {[%clk 0:00:45]} 57. Re2 {[%clk 0:00:04]}  Rc4 {[%clk 0:00:45]} 58. Ra2 {[%clk 0:00:04]}  Kf5 {[%clk 0:00:45]} 59. Rf2+ {[%clk 0:00:04]}  Kg5 {[%clk 0:00:43]} 60. Ra2 {[%clk 0:00:05]}  Rd4 {[%clk 0:00:38]} 61. Ra5 {[%clk 0:00:06]}  Rd2+ {[%clk 0:00:38]} 62. Kf1 {[%clk 0:00:06]}  Kf5 {[%clk 0:00:36]} 63. Ke1 {[%clk 0:00:06]}  Rd3 {[%clk 0:00:36]} 64. Bf2 {[%clk 0:00:05]}  e3 {[%clk 0:00:35]} 65. Bxe3 {[%clk 0:00:04]}  Rxe3+ {[%clk 0:00:36]} 66. Kf2 {[%clk 0:00:04]}  Re5 {[%clk 0:00:36]} 67. Kg3 {[%clk 0:00:05]}  Nf6 {[%clk 0:00:35]} 68. Ra4 {[%clk 0:00:04]}  h5 {[%clk 0:00:35]} 69. Rf4+ {[%clk 0:00:04]}  Kg5 {[%clk 0:00:35]} 70. h4+ {[%clk 0:00:05]}  Kg6 {[%clk 0:00:35]} 71. Rf3 {[%clk 0:00:05]}  Re4 {[%clk 0:00:35]} 72. Kh3 {[%clk 0:00:06]}  Rg4 {[%clk 0:00:35]} 73. Ra3 {[%clk 0:00:06]}  Nd5 {[%clk 0:00:35]} 74. Ra6+ {[%clk 0:00:06]}  Kf5 {[%clk 0:00:34]} 75. Ra5 {[%clk 0:00:05]}  Ke5 {[%clk 0:00:33]} 76. Rb5 {[%clk 0:00:04]}  Ke4 {[%clk 0:00:32]} 77. Ra5 {[%clk 0:00:02]}  Nf4+ {[%clk 0:00:32]} 78. Kh2 {[%clk 0:00:03]}  Rxh4+ {[%clk 0:00:33]} 79. Kg3 {[%clk 0:00:04]}  Rg4+ {[%clk 0:00:33]} 80. Kh2 {[%clk 0:00:03]}  h4 {[%clk 0:00:32]} 81. Ra4+ {[%clk 0:00:03]}  Ke5 {[%clk 0:00:32]} 82. Ra5+ {[%clk 0:00:03]}  Kf6 {[%clk 0:00:31]} 83. Ra6+ {[%clk 0:00:03]}  Kg5 {[%clk 0:00:31]} 84. Ra5+ {[%clk 0:00:03]}  Kh6 {[%clk 0:00:32]} 85. Ra4 {[%clk 0:00:03]}  Kh5 {[%clk 0:00:31]} 86. Ra5+ {[%clk 0:00:03]}  Rg5 {[%clk 0:00:32]} 87. Ra4 {[%clk 0:00:03]}  Kg4 {[%clk 0:00:31]} 88. Rb4 {[%clk 0:00:03]}  Re5 {[%clk 0:00:31]} 89. Kh1 {[%clk 0:00:03]}  h3 {[%clk 0:00:31]} 90. Ra4 {[%clk 0:00:01]}  Re3 {[%clk 0:00:31]} 91. Kh2 {[%clk 0:00:01]}  Re2+ {[%clk 0:00:31]} 92. Kh1 {[%clk 0:00:02]}  Rf2 {[%clk 0:00:30]} 93. Kg1 {[%clk 0:00:02]}  Kg3 {[%clk 0:00:29]} 94. Ra3+ {[%clk 0:00:01]}  Rf3 {[%clk 0:00:29]} 95. Ra2 {[%clk 0:00:01]}  Rb3 {[%clk 0:00:21]} 96. Ra1 {[%clk 0:00:02]}  Nd3 {[%clk 0:00:19]} 0-1


[Site "https://www.chess.com"]

[Event "Titled Tuesday Blitz August 02 Late 2022"]
[White "Bogaudinov, Rushan"]
[Black "Wu, Rochelle"]
[WhiteFideId "4129288"]
[BlackFideId "30908132"]
[WhiteElo "2010"]
[BlackElo "2168"]
[Result "0-1"]
[Round "11"]
[TimeControl "180+1"]
[Date "2022.08.02"]
[WhiteClock "0:00:22"]
[BlackClock "0:00:18"]

1. d4 {[%clk 0:03:00]}  d5 {[%clk 0:02:44]} 2. c4 {[%clk 0:02:59]}  c6 {[%clk 0:02:44]} 3. Nc3 {[%clk 0:02:59]}  Nf6 {[%clk 0:02:45]} 4. cxd5 {[%clk 0:02:58]}  cxd5 {[%clk 0:02:45]} 5. Nf3 {[%clk 0:02:59]}  Nc6 {[%clk 0:02:46]} 6. e3 {[%clk 0:02:59]}  a6 {[%clk 0:02:43]} 7. Be2 {[%clk 0:02:58]}  Bf5 {[%clk 0:02:42]} 8. O-O {[%clk 0:02:58]}  e6 {[%clk 0:02:43]} 9. a3 {[%clk 0:02:58]}  Bd6 {[%clk 0:02:42]} 10. Nh4 {[%clk 0:02:54]}  Be4 {[%clk 0:02:42]} 11. f3 {[%clk 0:02:48]}  Bg6 {[%clk 0:02:42]} 12. b4 {[%clk 0:02:40]}  Rc8 {[%clk 0:02:40]} 13. Bb2 {[%clk 0:02:38]}  Nd7 {[%clk 0:02:28]} 14. g3 {[%clk 0:02:28]}  Nb6 {[%clk 0:02:16]} 15. b5 {[%clk 0:02:23]}  Na5 {[%clk 0:02:12]} 16. bxa6 {[%clk 0:02:15]}  Nac4 {[%clk 0:01:58]} 17. axb7 {[%clk 0:02:10]}  Rb8 {[%clk 0:01:58]} 18. Bc1 {[%clk 0:01:57]}  Rxb7 {[%clk 0:01:44]} 19. a4 {[%clk 0:01:57]}  Bb4 {[%clk 0:01:41]} 20. Nb5 {[%clk 0:01:53]}  O-O {[%clk 0:01:33]} 21. Nxg6 {[%clk 0:01:53]}  hxg6 {[%clk 0:01:33]} 22. Qb3 {[%clk 0:01:47]}  Bd2 {[%clk 0:01:29]} 23. Bxc4 {[%clk 0:01:22]}  Nxc4 {[%clk 0:01:30]} 24. Ba3 {[%clk 0:01:01]}  Bxe3+ {[%clk 0:01:22]} 25. Kg2 {[%clk 0:00:59]}  Re8 {[%clk 0:01:14]} 26. Rfd1 {[%clk 0:00:54]}  Qf6 {[%clk 0:00:59]} 27. Rd3 {[%clk 0:00:51]}  Bh6 {[%clk 0:00:51]} 28. Bc5 {[%clk 0:00:41]}  e5 {[%clk 0:00:41]} 29. Qc2 {[%clk 0:00:33]}  e4 {[%clk 0:00:19]} 30. fxe4 {[%clk 0:00:25]}  dxe4 {[%clk 0:00:20]} 31. Qxc4 {[%clk 0:00:24]}  exd3 {[%clk 0:00:19]} 32. Qxd3 {[%clk 0:00:25]}  Qc6+ {[%clk 0:00:18]} 33. Qf3 {[%clk 0:00:23]}  Re2+ {[%clk 0:00:18]} 34. Kh3 {[%clk 0:00:22]}  Qxf3 {[%clk 0:00:18]} 0-1


[Site "https://www.chess.com"]

[Event "Titled Tuesday Blitz August 02 Late 2022"]
[White "Danielyan, Vahe"]
[Black "Maltsevskaya, Aleksandra"]
[WhiteFideId "13304828"]
[BlackFideId "24174041"]
[WhiteElo "2419"]
[BlackElo "2243"]
[Result "0-1"]
[Round "11"]
[TimeControl "180+1"]
[Date "2022.08.02"]
[WhiteClock "0:01:45"]
[BlackClock "0:00:47"]

1. e4 {[%clk 0:02:57]}  c5 {[%clk 0:02:58]} 2. Nc3 {[%clk 0:02:57]}  e6 {[%clk 0:02:58]} 3. Nge2 {[%clk 0:02:52]}  Nc6 {[%clk 0:02:58]} 4. g3 {[%clk 0:02:51]}  h5 {[%clk 0:02:55]} 5. d4 {[%clk 0:02:48]}  cxd4 {[%clk 0:02:52]} 6. Nxd4 {[%clk 0:02:49]}  h4 {[%clk 0:02:52]} 7. Ndb5 {[%clk 0:02:45]}  hxg3 {[%clk 0:02:52]} 8. fxg3 {[%clk 0:02:43]}  d6 {[%clk 0:02:44]} 9. Bf4 {[%clk 0:02:42]}  e5 {[%clk 0:02:39]} 10. Be3 {[%clk 0:02:43]}  Nf6 {[%clk 0:02:38]} 11. Be2 {[%clk 0:02:41]}  a6 {[%clk 0:02:37]} 12. Na3 {[%clk 0:02:40]}  Be6 {[%clk 0:02:24]} 13. Nc4 {[%clk 0:02:37]}  b5 {[%clk 0:02:23]} 14. Nb6 {[%clk 0:02:37]}  Rb8 {[%clk 0:02:22]} 15. Nbd5 {[%clk 0:02:34]}  Be7 {[%clk 0:02:11]} 16. Nxf6+ {[%clk 0:02:33]}  Bxf6 {[%clk 0:02:12]} 17. Nd5 {[%clk 0:02:32]}  Bg5 {[%clk 0:02:09]} 18. Qd2 {[%clk 0:02:27]}  Bxe3 {[%clk 0:02:06]} 19. Nxe3 {[%clk 0:02:28]}  O-O {[%clk 0:01:57]} 20. O-O {[%clk 0:02:26]}  Nd4 {[%clk 0:01:48]} 21. c3 {[%clk 0:02:26]}  Nxe2+ {[%clk 0:01:48]} 22. Qxe2 {[%clk 0:02:27]}  b4 {[%clk 0:01:49]} 23. c4 {[%clk 0:02:27]}  b3 {[%clk 0:01:47]} 24. axb3 {[%clk 0:02:19]}  Rxb3 {[%clk 0:01:41]} 25. Rxa6 {[%clk 0:02:19]}  Qb8 {[%clk 0:01:41]} 26. Nd5 {[%clk 0:02:13]}  Bxd5 {[%clk 0:01:37]} 27. cxd5 {[%clk 0:02:12]}  Rxb2 {[%clk 0:01:35]} 28. Qf3 {[%clk 0:02:09]}  Qb4 {[%clk 0:01:26]} 29. Rc6 {[%clk 0:02:03]}  Qd4+ {[%clk 0:01:12]} 30. Kh1 {[%clk 0:01:46]}  Qd2 {[%clk 0:00:48]} 31. Qh5 {[%clk 0:01:45]}  Qg2# {[%clk 0:00:47]} 0-1


[Site "https://www.chess.com"]

[Event "Titled Tuesday Blitz August 02 Late 2022"]
[White "Domingo Nunez, Ruben"]
[Black "Djordjevic, Vuk"]
[WhiteFideId "22245570"]
[BlackFideId "902098"]
[WhiteElo "2373"]
[BlackElo "2456"]
[Result "0-1"]
[Round "11"]
[TimeControl "180+1"]
[Date "2022.08.02"]
[WhiteClock "0:00:03"]
[BlackClock "0:00:09"]

1. c4 {[%clk 0:03:00]}  e5 {[%clk 0:03:00]} 2. Nc3 {[%clk 0:03:00]}  Nc6 {[%clk 0:03:00]} 3. Nf3 {[%clk 0:02:59]}  g6 {[%clk 0:03:01]} 4. d4 {[%clk 0:02:59]}  exd4 {[%clk 0:03:02]} 5. Nxd4 {[%clk 0:02:59]}  Bg7 {[%clk 0:03:02]} 6. Nc2 {[%clk 0:03:00]}  d6 {[%clk 0:03:02]} 7. g3 {[%clk 0:03:01]}  Be6 {[%clk 0:03:02]} 8. Ne3 {[%clk 0:03:00]}  Qd7 {[%clk 0:02:58]} 9. Ned5 {[%clk 0:02:58]}  Nd8 {[%clk 0:02:55]} 10. Bf4 {[%clk 0:02:54]}  Ne7 {[%clk 0:02:37]} 11. Bh6 {[%clk 0:02:25]}  Bxd5 {[%clk 0:02:26]} 12. Bxg7 {[%clk 0:01:59]}  Bxh1 {[%clk 0:02:26]} 13. Bxh8 {[%clk 0:01:59]}  Qe6 {[%clk 0:02:01]} 14. Qd3 {[%clk 0:01:43]}  Bc6 {[%clk 0:01:50]} 15. Bd4 {[%clk 0:01:37]}  Nf5 {[%clk 0:01:47]} 16. O-O-O {[%clk 0:01:37]}  Nxd4 {[%clk 0:01:42]} 17. Qxd4 {[%clk 0:01:38]}  Qe5 {[%clk 0:01:37]} 18. Qxe5+ {[%clk 0:01:36]}  dxe5 {[%clk 0:01:37]} 19. Bh3 {[%clk 0:01:36]}  f5 {[%clk 0:01:34]} 20. e4 {[%clk 0:01:35]}  fxe4 {[%clk 0:01:20]} 21. b4 {[%clk 0:00:37]}  Kf8 {[%clk 0:00:43]} 22. b5 {[%clk 0:00:26]}  Be8 {[%clk 0:00:43]} 23. Nxe4 {[%clk 0:00:17]}  Ke7 {[%clk 0:00:33]} 24. Nc3 {[%clk 0:00:15]}  c6 {[%clk 0:00:32]} 25. Re1 {[%clk 0:00:14]}  Nf7 {[%clk 0:00:22]} 26. f4 {[%clk 0:00:14]}  cxb5 {[%clk 0:00:23]} 27. cxb5 {[%clk 0:00:14]}  Rd8 {[%clk 0:00:23]} 28. fxe5 {[%clk 0:00:13]}  Rd3 {[%clk 0:00:24]} 29. Kc2 {[%clk 0:00:12]}  Rf3 {[%clk 0:00:24]} 30. Re2 {[%clk 0:00:12]}  Ng5 {[%clk 0:00:19]} 31. Bg2 {[%clk 0:00:11]}  Rf5 {[%clk 0:00:15]} 32. g4 {[%clk 0:00:11]}  Rf7 {[%clk 0:00:14]} 33. Bxb7 {[%clk 0:00:08]}  Ne6 {[%clk 0:00:14]} 34. Rd2 {[%clk 0:00:06]}  Kf8 {[%clk 0:00:10]} 35. Nd5 {[%clk 0:00:04]}  Rxb7 {[%clk 0:00:09]} 36. Rf2+ {[%clk 0:00:03]}  Bf7 {[%clk 0:00:09]} 37. a4 {[%clk 0:00:03]}  Kg7 {[%clk 0:00:09]} 38. Kc3 {[%clk 0:00:03]}  Nc5 {[%clk 0:00:09]} 0-1


[Site "https://www.chess.com"]

[Event "Titled Tuesday Blitz August 02 Late 2022"]
[White "Izoria, Zviad"]
[Black "Pakleza, Zbigniew"]
[WhiteFideId "13601733"]
[BlackFideId "1119290"]
[WhiteElo "2626"]
[BlackElo "2467"]
[Result "1/2-1/2"]
[Round "11"]
[TimeControl "180+1"]
[Date "2022.08.02"]
[WhiteClock "0:00:05"]
[BlackClock "0:00:16"]

1. Nf3 {[%clk 0:03:00]}  Nf6 {[%clk 0:02:57]} 2. c4 {[%clk 0:03:00]}  c6 {[%clk 0:02:55]} 3. Nc3 {[%clk 0:02:59]}  d5 {[%clk 0:02:55]} 4. d4 {[%clk 0:02:59]}  Qb6 {[%clk 0:02:54]} 5. Qc2 {[%clk 0:02:58]}  Na6 {[%clk 0:02:31]} 6. a3 {[%clk 0:02:55]}  Bg4 {[%clk 0:02:27]} 7. Ne5 {[%clk 0:02:55]}  Be6 {[%clk 0:02:25]} 8. c5 {[%clk 0:02:38]}  Qd8 {[%clk 0:02:22]} 9. Bf4 {[%clk 0:02:36]}  Nc7 {[%clk 0:02:15]} 10. e3 {[%clk 0:02:34]}  g6 {[%clk 0:02:11]} 11. h3 {[%clk 0:02:25]}  Bg7 {[%clk 0:02:08]} 12. Bd3 {[%clk 0:02:25]}  O-O {[%clk 0:02:07]} 13. O-O {[%clk 0:02:25]}  Nd7 {[%clk 0:02:07]} 14. Nf3 {[%clk 0:02:24]}  f6 {[%clk 0:02:01]} 15. b4 {[%clk 0:02:22]}  a6 {[%clk 0:01:58]} 16. Rfe1 {[%clk 0:02:14]}  Bf7 {[%clk 0:01:57]} 17. e4 {[%clk 0:02:13]}  e5 {[%clk 0:01:42]} 18. dxe5 {[%clk 0:01:17]}  fxe5 {[%clk 0:01:35]} 19. Bg3 {[%clk 0:01:17]}  d4 {[%clk 0:01:27]} 20. Nb1 {[%clk 0:01:16]}  Ne6 {[%clk 0:01:15]} 21. Nbd2 {[%clk 0:01:13]}  Nf4 {[%clk 0:01:08]} 22. Bc4 {[%clk 0:00:36]}  Qf6 {[%clk 0:00:57]} 23. Bxf4 {[%clk 0:00:31]}  Qxf4 {[%clk 0:00:52]} 24. Bxf7+ {[%clk 0:00:31]}  Rxf7 {[%clk 0:00:53]} 25. Nc4 {[%clk 0:00:31]}  Bf8 {[%clk 0:00:41]} 26. Qb3 {[%clk 0:00:27]}  Kg7 {[%clk 0:00:39]} 27. Rad1 {[%clk 0:00:26]}  Re8 {[%clk 0:00:37]} 28. Rd3 {[%clk 0:00:21]}  Qf6 {[%clk 0:00:36]} 29. Qc2 {[%clk 0:00:19]}  Qe6 {[%clk 0:00:36]} 30. Ng5 {[%clk 0:00:15]}  Qf6 {[%clk 0:00:34]} 31. Nxf7 {[%clk 0:00:16]}  Qxf7 {[%clk 0:00:35]} 32. Rf3 {[%clk 0:00:13]}  Qe6 {[%clk 0:00:35]} 33. Nb2 {[%clk 0:00:12]}  Nf6 {[%clk 0:00:36]} 34. Nd3 {[%clk 0:00:13]}  Be7 {[%clk 0:00:29]} 35. Nb2 {[%clk 0:00:13]}  Nd7 {[%clk 0:00:28]} 36. Qc4 {[%clk 0:00:13]}  Nf8 {[%clk 0:00:23]} 37. Qxe6 {[%clk 0:00:13]}  Nxe6 {[%clk 0:00:24]} 38. Nc4 {[%clk 0:00:12]}  Bf6 {[%clk 0:00:25]} 39. h4 {[%clk 0:00:11]}  Bxh4 {[%clk 0:00:18]} 40. Nxe5 {[%clk 0:00:11]}  Ng5 {[%clk 0:00:18]} 41. Nd3 {[%clk 0:00:08]}  Nxf3+ {[%clk 0:00:19]} 42. gxf3 {[%clk 0:00:09]}  Bd8 {[%clk 0:00:17]} 43. f4 {[%clk 0:00:09]}  Bc7 {[%clk 0:00:17]} 44. Kg2 {[%clk 0:00:09]}  Kf6 {[%clk 0:00:16]} 45. Kf3 {[%clk 0:00:08]}  g5 {[%clk 0:00:15]} 46. fxg5+ {[%clk 0:00:07]}  Kxg5 {[%clk 0:00:15]} 47. Rg1+ {[%clk 0:00:07]}  Kf6 {[%clk 0:00:15]} 48. Rh1 {[%clk 0:00:08]}  Kg6 {[%clk 0:00:14]} 49. Rg1+ {[%clk 0:00:07]}  Kf6 {[%clk 0:00:15]} 50. Rh1 {[%clk 0:00:07]}  Kg6 {[%clk 0:00:15]} 51. Rg1+ {[%clk 0:00:05]}  Kf6 {[%clk 0:00:16]} 1/2-1/2


[Site "https://www.chess.com"]

[Event "Titled Tuesday Blitz August 02 Late 2022"]
[White "Kazancev, Valerij M"]
[Black "Wieczorek, Oskar"]
[WhiteFideId "4179609"]
[BlackFideId "1133950"]
[WhiteElo "2525"]
[BlackElo "2330"]
[Result "1-0"]
[Round "11"]
[TimeControl "180+1"]
[Date "2022.08.02"]
[WhiteClock "0:00:08"]
[BlackClock "0:00:49"]

1. c4 {[%clk 0:03:00]}  Nf6 {[%clk 0:02:59]} 2. g3 {[%clk 0:03:00]}  g6 {[%clk 0:03:00]} 3. Bg2 {[%clk 0:03:00]}  Bg7 {[%clk 0:03:00]} 4. Nc3 {[%clk 0:03:00]}  O-O {[%clk 0:03:01]} 5. e3 {[%clk 0:03:01]}  c5 {[%clk 0:03:02]} 6. Nge2 {[%clk 0:03:01]}  Nc6 {[%clk 0:03:02]} 7. a3 {[%clk 0:03:01]}  d6 {[%clk 0:03:03]} 8. Rb1 {[%clk 0:03:01]}  Bf5 {[%clk 0:03:03]} 9. d3 {[%clk 0:03:01]}  Rb8 {[%clk 0:03:03]} 10. b4 {[%clk 0:03:01]}  Qc8 {[%clk 0:02:59]} 11. h3 {[%clk 0:03:00]}  b6 {[%clk 0:02:58]} 12. b5 {[%clk 0:02:42]}  Na5 {[%clk 0:02:55]} 13. e4 {[%clk 0:02:17]}  Bd7 {[%clk 0:02:54]} 14. Be3 {[%clk 0:02:18]}  Qd8 {[%clk 0:02:53]} 15. O-O {[%clk 0:02:17]}  Ne8 {[%clk 0:02:47]} 16. Qd2 {[%clk 0:02:15]}  Nc7 {[%clk 0:02:46]} 17. f4 {[%clk 0:02:08]}  f5 {[%clk 0:02:44]} 18. exf5 {[%clk 0:01:54]}  gxf5 {[%clk 0:02:43]} 19. Kh2 {[%clk 0:01:49]}  e6 {[%clk 0:02:42]} 20. Qa2 {[%clk 0:01:38]}  Kh8 {[%clk 0:02:33]} 21. d4 {[%clk 0:01:37]}  Qe7 {[%clk 0:02:23]} 22. Rfe1 {[%clk 0:01:34]}  Rbd8 {[%clk 0:02:22]} 23. Rbd1 {[%clk 0:01:30]}  Bf6 {[%clk 0:02:17]} 24. Bf2 {[%clk 0:01:26]}  Qg7 {[%clk 0:02:16]} 25. Bf3 {[%clk 0:01:24]}  cxd4 {[%clk 0:02:04]} 26. Bxd4 {[%clk 0:01:04]}  e5 {[%clk 0:02:04]} 27. Bf2 {[%clk 0:00:52]}  e4 {[%clk 0:02:04]} 28. Bh1 {[%clk 0:00:47]}  Be6 {[%clk 0:02:04]} 29. Nd5 {[%clk 0:00:45]}  Nxd5 {[%clk 0:02:04]} 30. cxd5 {[%clk 0:00:45]}  Bg8 {[%clk 0:02:02]} 31. Nd4 {[%clk 0:00:45]}  Qb7 {[%clk 0:01:29]} 32. Nxf5 {[%clk 0:00:37]}  Rfe8 {[%clk 0:01:23]} 33. Rxe4 {[%clk 0:00:35]}  Qd7 {[%clk 0:01:20]} 34. Nd4 {[%clk 0:00:30]}  Nb7 {[%clk 0:01:20]} 35. Ne6 {[%clk 0:00:26]}  Nc5 {[%clk 0:01:18]} 36. Bxc5 {[%clk 0:00:23]}  dxc5 {[%clk 0:01:14]} 37. Nxd8 {[%clk 0:00:22]}  Rxe4 {[%clk 0:01:14]} 38. Bxe4 {[%clk 0:00:22]}  Qxd8 {[%clk 0:01:15]} 39. Qe2 {[%clk 0:00:20]}  Qd6 {[%clk 0:01:13]} 40. Qg4 {[%clk 0:00:18]}  c4 {[%clk 0:01:12]} 41. Qc8 {[%clk 0:00:17]}  c3 {[%clk 0:01:13]} 42. a4 {[%clk 0:00:16]}  Qe7 {[%clk 0:01:10]} 43. Qf5 {[%clk 0:00:14]}  c2 {[%clk 0:00:59]} 44. Rc1 {[%clk 0:00:12]}  Bd4 {[%clk 0:00:51]} 45. Rxc2 {[%clk 0:00:12]}  Qb4 {[%clk 0:00:51]} 46. h4 {[%clk 0:00:08]}  Qe1 {[%clk 0:00:51]} 47. Rg2 {[%clk 0:00:08]}  Bc5 {[%clk 0:00:49]} 48. Qf6# {[%clk 0:00:08]} 1-0


[Site "https://www.chess.com"]